[Event "Live Chess"]
[Site "Chess.com"]
[Date "2023.05.20"]
[Round "-"]
[White "Missedidea"]
[Black "thrithik"]
[Result "1-0"]
[WhiteElo "1740"]
[BlackElo "459"]
[TimeControl "300"]
[EndTime "12:02:06 PDT"]
[Termination "Missedidea won by checkmate"]

1. d4 {[%clk 0:04:58.5]} 1... a5 {[%clk 0:04:49]} 2. c4 {[%clk 0:04:56.8]} 2...
h5 {[%clk 0:04:32.5]} 3. e4 {[%clk 0:04:55.1]} 3... g6 {[%clk 0:04:21.9]} 4. e5
{[%clk 0:04:53.7]} 4... b6 {[%clk 0:04:08.6]} 5. f4 {[%clk 0:04:52.2]} 5... Nh6
{[%clk 0:03:42.9]} 6. Nf3 {[%clk 0:04:50.3]} 6... Nc6 {[%clk 0:03:26.2]} 7. Bd3
{[%clk 0:04:47.6]} 7... Ra6 {[%clk 0:03:01.1]} 8. O-O {[%clk 0:04:43.3]} 8... d6
{[%clk 0:02:45.1]} 9. a3 {[%clk 0:04:40.2]} 9... dxe5 {[%clk 0:02:43.2]} 10.
fxe5 {[%clk 0:04:38.4]} 10... f6 {[%clk 0:02:38.1]} 11. Bxg6+ {[%clk 0:04:35.9]}
11... Kd7 {[%clk 0:02:26]} 12. d5 {[%clk 0:04:28.2]} 12... Nxe5 {[%clk
0:02:07.7]} 13. Nxe5+ {[%clk 0:04:26.1]} 13... Kd6 {[%clk 0:01:52.8]} 14. Nf7+
{[%clk 0:04:23.4]} 14... Kd7 {[%clk 0:01:36.8]} 15. Nxd8 {[%clk 0:04:20.7]}
15... Kxd8 {[%clk 0:01:35.6]} 16. Bf4 {[%clk 0:04:09.4]} 16... Rg8 {[%clk
0:01:31.7]} 17. Qxh5 {[%clk 0:04:03.8]} 17... Rh8 {[%clk 0:01:11]} 18. Nc3
{[%clk 0:03:46]} 18... Bd7 {[%clk 0:00:59.2]} 19. b4 {[%clk 0:03:36.3]} 19...
axb4 {[%clk 0:00:57.3]} 20. axb4 {[%clk 0:03:34.4]} 20... Rxa1 {[%clk
0:00:51.5]} 21. Rxa1 {[%clk 0:03:33]} 21... e5 {[%clk 0:00:40.4]} 22. dxe6
{[%clk 0:03:30]} 22... Bxe6 {[%clk 0:00:33.4]} 23. Ra8+ {[%clk 0:03:22.8]} 23...
Kd7 {[%clk 0:00:21.8]} 24. Qb5+ {[%clk 0:03:13.6]} 24... c6 {[%clk 0:00:17.2]}
25. Be8+ {[%clk 0:03:04]} 25... Ke7 {[%clk 0:00:11.7]} 26. Qxb6 {[%clk
0:02:55.4]} 26... Bg7 {[%clk 0:00:04.1]} 27. Qc5# {[%clk 0:02:51.5]} 1-0

[Event "Live Chess"]
[Site "Chess.com"]
[Date "2023.05.20"]
[Round "-"]
[White "Conradical12"]
[Black "CeladonFish"]
[Result "1-0"]
[WhiteElo "1542"]
[BlackElo "1060"]
[TimeControl "300"]
[EndTime "12:02:08 PDT"]
[Termination "Conradical12 won by checkmate"]

1. e4 {[%clk 0:04:58]} 1... d6 {[%clk 0:04:58.3]} 2. d4 {[%clk 0:04:56.4]} 2...
Nf6 {[%clk 0:04:56.8]} 3. Nc3 {[%clk 0:04:53.1]} 3... c6 {[%clk 0:04:55]} 4. Nf3
{[%clk 0:04:50.6]} 4... g6 {[%clk 0:04:53.1]} 5. Bf4 {[%clk 0:04:49.7]} 5... Bg7
{[%clk 0:04:49.6]} 6. Qd2 {[%clk 0:04:49.2]} 6... b5 {[%clk 0:04:47.4]} 7. O-O-O
{[%clk 0:04:48.3]} 7... Bg4 {[%clk 0:04:41.4]} 8. Be2 {[%clk 0:04:46.3]} 8...
Bxf3 {[%clk 0:04:40.1]} 9. Bxf3 {[%clk 0:04:44.9]} 9... Na6 {[%clk 0:04:38.4]}
10. e5 {[%clk 0:04:42.5]} 10... dxe5 {[%clk 0:04:36.7]} 11. Bxc6+ {[%clk
0:04:38.9]} 11... Kf8 {[%clk 0:04:33.6]} 12. dxe5 {[%clk 0:04:36.7]} 12... Qxd2+
{[%clk 0:04:32.8]} 13. Rxd2 {[%clk 0:04:35.6]} 13... Rc8 {[%clk 0:04:31.8]} 14.
exf6 {[%clk 0:04:32.8]} 14... Bxf6 {[%clk 0:04:31]} 15. Bh6+ {[%clk 0:04:27.3]}
15... Kg8 {[%clk 0:04:29]} 16. Bb7 {[%clk 0:04:25.5]} 16... Re8 {[%clk
0:04:24.4]} 17. Bxa6 {[%clk 0:04:22.7]} 17... b4 {[%clk 0:04:23.1]} 18. Bb5
{[%clk 0:04:20.3]} 18... bxc3 {[%clk 0:04:22]} 19. bxc3 {[%clk 0:04:17.2]} 19...
Bxc3 {[%clk 0:04:20.8]} 20. Bxe8 {[%clk 0:04:16.5]} 20... f5 {[%clk 0:04:16.6]}
21. Bd7 {[%clk 0:04:12.5]} 21... e5 {[%clk 0:04:14.6]} 22. Be6# {[%clk
0:04:10.9]} 1-0

[Event "Live Chess"]
[Site "Chess.com"]
[Date "2023.05.20"]
[Round "-"]
[White "CocheseUK"]
[Black "Ayursworld"]
[Result "0-1"]
[WhiteElo "1036"]
[BlackElo "1374"]
[TimeControl "300"]
[EndTime "12:02:09 PDT"]
[Termination "Ayursworld won by resignation"]

1. e4 {[%clk 0:04:57.4]} 1... c5 {[%clk 0:04:57.4]} 2. Nf3 {[%clk 0:04:54.2]}
2... Nc6 {[%clk 0:04:55.1]} 3. Nc3 {[%clk 0:04:48.6]} 3... e5 {[%clk 0:04:53.8]}
4. Bb5 {[%clk 0:04:44.7]} 4... Nf6 {[%clk 0:04:50.9]} 5. O-O {[%clk 0:04:38.9]}
5... d6 {[%clk 0:04:46.6]} 6. d3 {[%clk 0:04:35.6]} 6... Bg4 {[%clk 0:04:43.2]}
7. h3 {[%clk 0:04:31.9]} 7... Bxf3 {[%clk 0:04:41.6]} 8. Qxf3 {[%clk 0:04:27.6]}
8... a6 {[%clk 0:04:40.8]} 9. Ba4 {[%clk 0:04:23.2]} 9... b5 {[%clk 0:04:39]}
10. Bb3 {[%clk 0:04:22.4]} 10... Be7 {[%clk 0:04:36.4]} 11. a3 {[%clk 0:04:20]}
11... Nd4 {[%clk 0:04:35]} 12. Qg3 {[%clk 0:04:12.2]} 12... O-O {[%clk
0:04:32.1]} 13. Ba2 {[%clk 0:04:02.1]} 13... b4 {[%clk 0:04:30.3]} 14. axb4
{[%clk 0:03:58.2]} 14... cxb4 {[%clk 0:04:28.9]} 15. Bd2 {[%clk 0:03:35.4]}
15... bxc3 {[%clk 0:04:26.6]} 0-1

[Event "Live Chess"]
[Site "Chess.com"]
[Date "2023.05.20"]
[Round "-"]
[White "elephantgerrald"]
[Black "elizaveta_frundina"]
[Result "0-1"]
[WhiteElo "372"]
[BlackElo "1565"]
[TimeControl "300"]
[EndTime "12:02:13 PDT"]
[Termination "elizaveta_frundina won - game abandoned"]

1. e4 {[%clk 0:04:51]} 1... c5 {[%clk 0:04:57.4]} 2. Nf3 {[%clk 0:04:49.3]} 2...
d6 {[%clk 0:04:54.4]} 3. Nc3 {[%clk 0:04:46]} 3... Nc6 {[%clk 0:04:52.5]} 4. Bb5
{[%clk 0:04:43.8]} 4... a6 {[%clk 0:04:49.3]} 5. Bxc6+ {[%clk 0:04:37.1]} 5...
bxc6 {[%clk 0:04:48.3]} 6. O-O {[%clk 0:04:35.8]} 6... Nf6 {[%clk 0:04:46.7]} 7.
d3 {[%clk 0:04:34]} 7... e5 {[%clk 0:04:44.8]} 8. Bg5 {[%clk 0:04:31.7]} 8...
Be7 {[%clk 0:04:43.6]} 9. h3 {[%clk 0:04:29.6]} 9... O-O {[%clk 0:04:42.3]} 10.
Qd2 {[%clk 0:04:25.9]} 10... h6 {[%clk 0:04:40.7]} 11. Bxh6 {[%clk 0:04:22.7]}
11... gxh6 {[%clk 0:04:32.1]} 12. Qxh6 {[%clk 0:04:15.5]} 12... Nh7 {[%clk
0:04:29.2]} 13. Nh2 {[%clk 0:04:00.3]} 13... Bg5 {[%clk 0:04:12.8]} 14. Qh5
{[%clk 0:03:44.2]} 14... Qf6 {[%clk 0:04:09.8]} 15. Ng4 {[%clk 0:03:38.4]} 15...
Bxg4 {[%clk 0:04:07.1]} 16. hxg4 {[%clk 0:03:34.1]} 16... Qh6 {[%clk 0:03:56.9]}
17. Qxh6 {[%clk 0:03:24.3]} 17... Bxh6 {[%clk 0:03:56]} 18. g3 {[%clk
0:03:18.8]} 18... Ng5 {[%clk 0:03:52.9]} 19. Kg2 {[%clk 0:03:15.1]} 19... Kg7
{[%clk 0:03:47.3]} 20. a3 {[%clk 0:03:09.3]} 20... Rh8 {[%clk 0:03:44.6]} 21. f4
{[%clk 0:03:04.7]} 21... exf4 {[%clk 0:03:41.1]} 22. gxf4 {[%clk 0:03:03.2]}
22... Ne6 {[%clk 0:03:31]} 23. g5 {[%clk 0:03:01.3]} 23... Nxg5 {[%clk
0:03:27.8]} 24. fxg5 {[%clk 0:02:59.6]} 24... Bxg5 {[%clk 0:03:26.1]} 25. Rh1
{[%clk 0:02:55.9]} 25... Rxh1 {[%clk 0:03:18]} 26. Rxh1 {[%clk 0:02:53.7]} 26...
Rh8 {[%clk 0:03:16.1]} 27. Rg1 {[%clk 0:02:45]} 27... Rh4 {[%clk 0:03:01.1]} 28.
Kf3 {[%clk 0:02:42.2]} 28... Rf4+ {[%clk 0:02:52.7]} 29. Ke2 {[%clk 0:02:35.9]}
29... f6 {[%clk 0:02:49.2]} 30. Rf1 {[%clk 0:02:30.2]} 30... Rxf1 {[%clk
0:02:46.8]} 0-1

[Event "Live Chess"]
[Site "Chess.com"]
[Date "2023.05.20"]
[Round "-"]
[White "seabuck"]
[Black "CheckThis4"]
[Result "0-1"]
[WhiteElo "1857"]
[BlackElo "2554"]
[TimeControl "300"]
[EndTime "12:02:15 PDT"]
[Termination "CheckThis4 won by resignation"]

1. d4 {[%clk 0:04:57.7]} 1... Nf6 {[%clk 0:04:57.7]} 2. c4 {[%clk 0:04:56.6]}
2... e5 {[%clk 0:04:56.5]} 3. e3 {[%clk 0:04:54.1]} 3... Bb4+ {[%clk 0:04:52.7]}
4. Bd2 {[%clk 0:04:48.9]} 4... Bxd2+ {[%clk 0:04:51.5]} 5. Qxd2 {[%clk 0:04:48]}
5... exd4 {[%clk 0:04:50.1]} 6. exd4 {[%clk 0:04:46.8]} 6... O-O {[%clk
0:04:48.4]} 7. Be2 {[%clk 0:04:37.5]} 7... d5 {[%clk 0:04:42.9]} 8. Nc3 {[%clk
0:04:31.2]} 8... dxc4 {[%clk 0:04:40.7]} 9. Bxc4 {[%clk 0:04:29.6]} 9... c5
{[%clk 0:04:10]} 10. dxc5 {[%clk 0:04:15.6]} 10... Qe7+ {[%clk 0:04:08.6]} 11.
Nge2 {[%clk 0:04:13.4]} 11... Qxc5 {[%clk 0:04:07.5]} 12. Qd4 {[%clk 0:03:54.9]}
12... Qc7 {[%clk 0:03:59.4]} 13. O-O {[%clk 0:03:49.1]} 13... Nc6 {[%clk
0:03:58.2]} 14. Qh4 {[%clk 0:03:45.4]} 14... Ne5 {[%clk 0:03:52.9]} 15. Bb3
{[%clk 0:03:34.2]} 15... Ng6 {[%clk 0:03:51.5]} 16. Qg3 {[%clk 0:03:27.3]} 16...
Qb6 {[%clk 0:03:42.6]} 17. Nf4 {[%clk 0:03:07]} 17... Nxf4 {[%clk 0:03:38]} 18.
Qxf4 {[%clk 0:03:05.4]} 18... Be6 {[%clk 0:03:37.5]} 19. Bxe6 {[%clk 0:02:57.9]}
19... Qxe6 {[%clk 0:03:37.4]} 20. Rfe1 {[%clk 0:02:54.5]} 20... Qb6 {[%clk
0:03:35.6]} 21. b3 {[%clk 0:02:47.1]} 21... Rac8 {[%clk 0:03:30.1]} 22. Ne4
{[%clk 0:02:43]} 22... Nxe4 {[%clk 0:03:23.7]} 23. Rxe4 {[%clk 0:02:25.5]} 23...
Rc2 {[%clk 0:03:10.4]} 24. Rae1 {[%clk 0:02:12.5]} 24... h6 {[%clk 0:02:59.9]}
25. R4e2 {[%clk 0:02:05.8]} 25... Rxe2 {[%clk 0:02:47.9]} 26. Rxe2 {[%clk
0:02:04.4]} 26... Qa6 {[%clk 0:02:47.4]} 27. Qe3 {[%clk 0:01:54.5]} 27... Qc6
{[%clk 0:02:42.5]} 28. h3 {[%clk 0:01:51.7]} 28... a5 {[%clk 0:02:40.5]} 29. Qd3
{[%clk 0:01:36.2]} 29... Rc8 {[%clk 0:02:30.8]} 30. Kh2 {[%clk 0:01:27]} 30...
Qc7+ {[%clk 0:02:28.2]} 31. g3 {[%clk 0:01:25.5]} 31... Qc6 {[%clk 0:02:27.4]}
32. Qe4 {[%clk 0:01:22.7]} 32... Qxe4 {[%clk 0:02:18.8]} 33. Rxe4 {[%clk
0:01:21.6]} 33... Rc2 {[%clk 0:02:18.5]} 34. Kg2 {[%clk 0:01:19.9]} 34... Rxa2
{[%clk 0:02:16.1]} 35. Re7 {[%clk 0:01:17.4]} 35... b5 {[%clk 0:02:11.7]} 36.
Rb7 {[%clk 0:01:10.1]} 36... b4 {[%clk 0:02:09.4]} 37. Rb5 {[%clk 0:01:06.4]}
37... g6 {[%clk 0:02:06]} 38. h4 {[%clk 0:01:03.4]} 38... h5 {[%clk 0:02:05]}
39. Rc5 {[%clk 0:00:56.9]} 39... Kg7 {[%clk 0:02:02.4]} 40. Rd5 {[%clk
0:00:50.6]} 40... Ra3 {[%clk 0:01:59.3]} 41. Rb5 {[%clk 0:00:45.5]} 41... Kf6
{[%clk 0:01:57.9]} 42. Rc5 {[%clk 0:00:42.1]} 42... Ke6 {[%clk 0:01:56.8]} 43.
Rb5 {[%clk 0:00:40.6]} 43... Kd6 {[%clk 0:01:55.3]} 44. Rb7 {[%clk 0:00:35.4]}
44... Rxb3 {[%clk 0:01:49.8]} 45. Rxf7 {[%clk 0:00:34.4]} 45... a4 {[%clk
0:01:49.4]} 46. Rf6+ {[%clk 0:00:33.5]} 46... Kc5 {[%clk 0:01:39.1]} 47. Rxg6
{[%clk 0:00:32.2]} 47... a3 {[%clk 0:01:38.5]} 48. Rg5+ {[%clk 0:00:31.3]} 48...
Kb6 {[%clk 0:01:36.1]} 49. Rxh5 {[%clk 0:00:30.4]} 49... a2 {[%clk 0:01:35.2]}
50. Rh6+ {[%clk 0:00:29.3]} 50... Kb5 {[%clk 0:01:34.1]} 51. Rh5+ {[%clk
0:00:28.5]} 51... Ka4 {[%clk 0:01:29.4]} 0-1

[Event "Live Chess"]
[Site "Chess.com"]
[Date "2023.05.20"]
[Round "-"]
[White "ramses-IIG"]
[Black "SupremeTactician"]
[Result "0-1"]
[WhiteElo "789"]
[BlackElo "2400"]
[TimeControl "300"]
[EndTime "12:02:20 PDT"]
[Termination "SupremeTactician won by resignation"]

1. e4 {[%clk 0:04:58.4]} 1... e5 {[%clk 0:04:59.2]} 2. Nf3 {[%clk 0:04:58.2]}
2... Nc6 {[%clk 0:04:58.5]} 3. Bc4 {[%clk 0:04:56.7]} 3... Bc5 {[%clk
0:04:58.1]} 4. c3 {[%clk 0:04:54.2]} 4... Nf6 {[%clk 0:04:57.8]} 5. d4 {[%clk
0:04:53.1]} 5... exd4 {[%clk 0:04:57.7]} 6. cxd4 {[%clk 0:04:52.2]} 6... Bb4+
{[%clk 0:04:57.4]} 7. Bd2 {[%clk 0:04:43]} 7... Nxe4 {[%clk 0:04:56.3]} 8. Bxb4
{[%clk 0:04:37.7]} 8... Nxb4 {[%clk 0:04:56.2]} 9. Qb3 {[%clk 0:04:26.9]} 9...
d5 {[%clk 0:04:54.1]} 10. Qxb4 {[%clk 0:04:20.7]} 10... dxc4 {[%clk 0:04:52]}
11. Qxc4 {[%clk 0:04:20.6]} 11... O-O {[%clk 0:04:49]} 12. d5 {[%clk 0:04:13.5]}
12... Qd6 {[%clk 0:04:44.7]} 13. O-O {[%clk 0:04:08.2]} 13... Nf6 {[%clk
0:04:38]} 14. Nc3 {[%clk 0:04:05.9]} 14... Bg4 {[%clk 0:04:35.5]} 15. Qd3 {[%clk
0:03:53.3]} 15... Rad8 {[%clk 0:04:30.6]} 16. h3 {[%clk 0:03:51.4]} 16... Bxf3
{[%clk 0:04:29.2]} 17. Qxf3 {[%clk 0:03:49]} 17... Nxd5 {[%clk 0:04:28.5]} 18.
Ne4 {[%clk 0:03:40.1]} 18... Qe5 {[%clk 0:04:25.5]} 19. Rae1 {[%clk 0:03:34.7]}
19... Rfe8 {[%clk 0:04:11.4]} 20. Nc5 {[%clk 0:03:13.5]} 20... Qd6 {[%clk
0:03:55.2]} 21. Nxb7 {[%clk 0:03:09.5]} 21... Qc6 {[%clk 0:03:49.9]} 22. Nxd8
{[%clk 0:02:56]} 22... Rxd8 {[%clk 0:03:49.8]} 23. Re2 {[%clk 0:02:18.8]} 23...
g6 {[%clk 0:03:40.4]} 24. Rd1 {[%clk 0:02:13.5]} 24... Qb5 {[%clk 0:03:34.7]}
25. b3 {[%clk 0:01:59.1]} 25... c6 {[%clk 0:03:33.1]} 26. Rde1 {[%clk
0:01:39.8]} 26... Qb8 {[%clk 0:03:28]} 27. Qg4 {[%clk 0:01:17.9]} 27... Qd6
{[%clk 0:03:15.8]} 28. Rc1 {[%clk 0:00:56.6]} 28... h5 {[%clk 0:03:07.8]} 29.
Qa4 {[%clk 0:00:54.7]} 29... Nc3 {[%clk 0:03:01.6]} 30. Rec2 {[%clk 0:00:35.3]}
30... Nxa4 {[%clk 0:02:59.8]} 31. Rxc6 {[%clk 0:00:33.8]} 31... Qd2 {[%clk
0:02:53.4]} 32. R1c4 {[%clk 0:00:30.4]} 32... Nb6 {[%clk 0:02:49.2]} 33. Rc7
{[%clk 0:00:28.1]} 33... Qxa2 {[%clk 0:02:46.6]} 34. Rf4 {[%clk 0:00:25.3]}
34... Qa1+ {[%clk 0:02:43.6]} 35. Kh2 {[%clk 0:00:23.6]} 35... Qe5 {[%clk
0:02:43.5]} 36. g3 {[%clk 0:00:20.2]} 36... Qxc7 {[%clk 0:02:42]} 37. Rxf7
{[%clk 0:00:18.6]} 37... Qxf7 {[%clk 0:02:41.1]} 0-1

[Event "Live Chess"]
[Site "Chess.com"]
[Date "2023.05.20"]
[Round "-"]
[White "chessleanstrategist"]
[Black "McSlash1"]
[Result "0-1"]
[WhiteElo "400"]
[BlackElo "2055"]
[TimeControl "300"]
[EndTime "12:02:21 PDT"]
[Termination "McSlash1 won by checkmate"]

1. c4 {[%clk 0:04:59]} 1... e5 {[%clk 0:04:58.8]} 2. Nc3 {[%clk 0:04:58.6]} 2...
Nc6 {[%clk 0:04:58.2]} 3. g3 {[%clk 0:04:57.8]} 3... Nf6 {[%clk 0:04:57.8]} 4.
Bg2 {[%clk 0:04:57.3]} 4... Bc5 {[%clk 0:04:52.9]} 5. Nf3 {[%clk 0:04:53.9]}
5... d6 {[%clk 0:04:51.8]} 6. O-O {[%clk 0:04:52.2]} 6... O-O {[%clk 0:04:51.3]}
7. e3 {[%clk 0:04:50.4]} 7... a6 {[%clk 0:04:49.5]} 8. d4 {[%clk 0:04:43]} 8...
exd4 {[%clk 0:04:47.5]} 9. exd4 {[%clk 0:04:41.2]} 9... Ba7 {[%clk 0:04:46.7]}
10. d5 {[%clk 0:04:34.3]} 10... Ne5 {[%clk 0:04:45]} 11. Nxe5 {[%clk 0:04:31.8]}
11... dxe5 {[%clk 0:04:44.9]} 12. b3 {[%clk 0:04:29.1]} 12... Bf5 {[%clk
0:04:40.7]} 13. Bg5 {[%clk 0:04:04.9]} 13... h6 {[%clk 0:04:38.2]} 14. Bxf6
{[%clk 0:04:03.5]} 14... Qxf6 {[%clk 0:04:38.1]} 15. Re1 {[%clk 0:03:49.4]}
15... e4 {[%clk 0:04:33.9]} 16. Kh1 {[%clk 0:03:25.6]} 16... Qxc3 {[%clk
0:04:28.2]} 17. f3 {[%clk 0:02:53.8]} 17... exf3 {[%clk 0:04:20.2]} 18. Bxf3
{[%clk 0:02:48]} 18... Rae8 {[%clk 0:04:18.6]} 19. Rxe8 {[%clk 0:02:45.6]} 19...
Rxe8 {[%clk 0:04:18.5]} 20. Qf1 {[%clk 0:02:37]} 20... Re3 {[%clk 0:04:08.2]}
21. Kg2 {[%clk 0:02:30.5]} 21... Qb2+ {[%clk 0:03:54.8]} 22. Kh1 {[%clk
0:02:04.6]} 22... Rxf3 {[%clk 0:03:50.7]} 23. Qxf3 {[%clk 0:01:55.7]} 23...
Qxa1+ {[%clk 0:03:49.4]} 24. Kg2 {[%clk 0:01:55.3]} 24... Qg1# {[%clk
0:03:48.9]} 0-1

[Event "Live Chess"]
[Site "Chess.com"]
[Date "2023.05.20"]
[Round "-"]
[White "lateforthesky"]
[Black "Leonid_Starozhilov"]
[Result "0-1"]
[WhiteElo "2065"]
[BlackElo "2653"]
[TimeControl "300"]
[EndTime "12:02:44 PDT"]
[Termination "Leonid_Starozhilov won on time"]

1. e4 {[%clk 0:04:56.4]} 1... e5 {[%clk 0:04:58.1]} 2. Nf3 {[%clk 0:04:54.7]}
2... Nc6 {[%clk 0:04:55.9]} 3. Bb5 {[%clk 0:04:52.9]} 3... f5 {[%clk 0:04:55.2]}
4. d3 {[%clk 0:04:49.1]} 4... fxe4 {[%clk 0:04:54.4]} 5. dxe4 {[%clk 0:04:47.5]}
5... Nf6 {[%clk 0:04:53.8]} 6. O-O {[%clk 0:04:45.4]} 6... d6 {[%clk 0:04:49.4]}
7. Qd3 {[%clk 0:04:41.3]} 7... Be6 {[%clk 0:04:47.7]} 8. Nc3 {[%clk 0:04:33.6]}
8... h6 {[%clk 0:04:41.2]} 9. Nd5 {[%clk 0:04:20.5]} 9... Be7 {[%clk 0:04:38.5]}
10. Nxe7 {[%clk 0:04:02.3]} 10... Qxe7 {[%clk 0:04:36]} 11. Nh4 {[%clk
0:03:57.8]} 11... Qf7 {[%clk 0:04:23.5]} 12. Nf5 {[%clk 0:03:52.7]} 12... O-O
{[%clk 0:04:16.2]} 13. b3 {[%clk 0:03:48.3]} 13... Bxf5 {[%clk 0:04:04.1]} 14.
exf5 {[%clk 0:03:46.6]} 14... Nd4 {[%clk 0:04:03.4]} 15. c3 {[%clk 0:03:30.6]}
15... Nxb5 {[%clk 0:04:00.9]} 16. Qxb5 {[%clk 0:03:29]} 16... c6 {[%clk
0:03:57.2]} 17. Qd3 {[%clk 0:03:24.7]} 17... d5 {[%clk 0:03:56.5]} 18. f3 {[%clk
0:03:15.2]} 18... e4 {[%clk 0:03:50.1]} 19. fxe4 {[%clk 0:03:12.4]} 19... Nxe4
{[%clk 0:03:48.7]} 20. Be3 {[%clk 0:03:05.5]} 20... Qd7 {[%clk 0:03:38]} 21. g4
{[%clk 0:02:44.4]} 21... Rae8 {[%clk 0:03:11.8]} 22. Rf3 {[%clk 0:02:31.5]}
22... Nf6 {[%clk 0:03:05.4]} 23. h3 {[%clk 0:02:23.3]} 23... Re4 {[%clk
0:03:02.6]} 24. Bd4 {[%clk 0:02:20]} 24... Rfe8 {[%clk 0:02:57.9]} 25. Raf1
{[%clk 0:02:02.9]} 25... b6 {[%clk 0:02:54.3]} 26. Rg3 {[%clk 0:01:53.5]} 26...
Qd6 {[%clk 0:02:49]} 27. g5 {[%clk 0:01:40.7]} 27... Rxd4 {[%clk 0:02:05]} 28.
cxd4 {[%clk 0:01:34.7]} 28... Ne4 {[%clk 0:02:04]} 29. Rg2 {[%clk 0:01:28.1]}
29... Nxg5 {[%clk 0:02:02.5]} 30. f6 {[%clk 0:01:23.8]} 30... Re4 {[%clk
0:01:49.9]} 31. fxg7 {[%clk 0:01:14.2]} 31... Kxg7 {[%clk 0:01:23.6]} 32. Rf5
{[%clk 0:00:52.6]} 32... Qg6 {[%clk 0:01:15.4]} 33. Rfxg5 {[%clk 0:00:32.1]}
33... hxg5 {[%clk 0:01:11.8]} 34. Qg3 {[%clk 0:00:29.6]} 34... Qf6 {[%clk
0:00:50.2]} 35. h4 {[%clk 0:00:21.4]} 35... Qxd4+ {[%clk 0:00:46.7]} 36. Qf2
{[%clk 0:00:13.8]} 36... Qxf2+ {[%clk 0:00:41.3]} 37. Kxf2 {[%clk 0:00:11.9]}
37... Rxh4 {[%clk 0:00:37.8]} 38. Rxg5+ {[%clk 0:00:10.8]} 38... Kf6 {[%clk
0:00:37.2]} 39. Rg2 {[%clk 0:00:09]} 39... c5 {[%clk 0:00:35.6]} 40. Ke2 {[%clk
0:00:08.1]} 40... Ke5 {[%clk 0:00:34.3]} 41. Kd2 {[%clk 0:00:07.3]} 41... c4
{[%clk 0:00:31.4]} 42. bxc4 {[%clk 0:00:05.3]} 42... dxc4 {[%clk 0:00:30.7]} 43.
Kc3 {[%clk 0:00:04.1]} 43... b5 {[%clk 0:00:29.7]} 44. a3 {[%clk 0:00:02.8]}
44... a6 {[%clk 0:00:28.4]} 45. Kb4 {[%clk 0:00:01.6]} 45... Rh3 {[%clk
0:00:27.2]} 46. Re2+ {[%clk 0:00:00.1]} 46... Kd5 {[%clk 0:00:25.9]} 0-1

[Event "Live Chess"]
[Site "Chess.com"]
[Date "2023.05.20"]
[Round "-"]
[White "Olisingapore"]
[Black "MJMykh"]
[Result "1-0"]
[WhiteElo "1904"]
[BlackElo "1074"]
[TimeControl "300"]
[EndTime "12:02:57 PDT"]
[Termination "Olisingapore won - game abandoned"]

1. d4 {[%clk 0:04:57.3]} 1... d5 {[%clk 0:04:59.1]} 2. c4 {[%clk 0:04:57.2]}
2... dxc4 {[%clk 0:04:57.7]} 3. Nf3 {[%clk 0:04:56.6]} 3... Nc6 {[%clk
0:04:56.7]} 4. e3 {[%clk 0:04:56.5]} 4... Nf6 {[%clk 0:04:56]} 5. Bxc4 {[%clk
0:04:56.4]} 5... e6 {[%clk 0:04:55.5]} 6. O-O {[%clk 0:04:55.6]} 6... Bb4 {[%clk
0:04:54.8]} 7. Nc3 {[%clk 0:04:55.5]} 7... Bxc3 {[%clk 0:04:53.9]} 8. bxc3
{[%clk 0:04:55.2]} 8... O-O {[%clk 0:04:53.8]} 9. Qc2 {[%clk 0:04:46.4]} 9... h6
{[%clk 0:04:51.2]} 10. e4 {[%clk 0:04:39.2]} 10... Qe7 {[%clk 0:04:46.2]} 11. e5
{[%clk 0:04:32.8]} 11... Nd5 {[%clk 0:04:41.7]} 12. Qd2 {[%clk 0:04:30.6]} 12...
Nb6 {[%clk 0:04:34.8]} 13. Bb3 {[%clk 0:04:25.3]} 13... Na5 {[%clk 0:04:32.4]}
14. Bc2 {[%clk 0:04:22.9]} 14... Nac4 {[%clk 0:04:30]} 15. Qd3 {[%clk
0:04:21.9]} 15... f5 {[%clk 0:04:17.9]} 16. exf6 {[%clk 0:04:19.8]} 16... Qxf6
{[%clk 0:04:10.6]} 17. Qh7+ {[%clk 0:04:09.7]} 17... Kf7 {[%clk 0:04:09.1]} 18.
Ne5+ {[%clk 0:03:47]} 1-0